fUSD/lending_fUSD_20260614
["ID","MTS","AMOUNT","RATE_DAILY","PERIOD"]
[424997867,1781399442000,-1758.07113899,0.00024219,2]
[424997870,1781399442000,-632.0,0.000246,2]
[424997872,1781399442000,-173.63,0.00024658,2]
[424997875,1781399442000,-156.01674226,0.00024658,2]
[424997874,1781399442000,-151.0,0.00024658,2]
[424997876,1781399442000,-158.55,0.00024658,2]
[424997877,1781399442000,-158.6,0.00024658,2]
[424997879,1781399442000,-218.7330063,0.00024727,2]
[424997883,1781399442000,-3779.63076745,0.00025,7]
[424997881,1781399442000,-200.0,0.00025,2]
[424997878,1781399442000,-158.57,0.00024658,2]
[424997882,1781399442000,-300.0,0.00025,10]
[424997884,1781399442000,-164.57864404,0.00025,2]
[424997871,1781399442000,-1000.0,0.00024658,2]
[424997914,1781399442000,-9013.29830902,0.00027,7]
[424997912,1781399442000,-178.0984229,0.00026932,2]
[424997920,1781399442000,-1275.0,0.00027135,2]
[424997954,1781399442000,-1000.0,0.0002785,2]
[424997960,1781399442000,-150.0,0.00027973,2]
[424997950,1781399442000,-1942.86,0.0002763,120]
[424997952,1781399442000,-1000.0,0.0002785,2]
[424997953,1781399442000,-1000.0,0.0002785,2]
[424997955,1781399442000,-1000.0,0.0002785,2]
[424997959,1781399442000,-188.67,0.00027964,2]
[424997957,1781399442000,-1860.86,0.0002785,2]
[424997958,1781399442000,-655.14764185,0.00027908,2]
[424997956,1781399442000,-1000.0,0.0002785,2]
[424997961,1781399442000,-218.0,0.00028,3]
[424997962,1781399442000,-178.0984229,0.00028028,2]
[424997951,1781399442000,-751.0,0.00027849,5]
[424997964,1781399442000,-211.46,0.0002813,7]
[424997963,1781399442000,-1942.86,0.00028096,120]
[424997966,1781399442000,-2739.463,0.0002819,19]
[424997967,1781399442000,-152.512,0.0002819,19]
[424997970,1781399442000,-210.96,0.00028239,2]
[424997969,1781399442000,-3890.64,0.000282,7]
[424997971,1781399442000,-150.03,0.00028239,2]
[424997972,1781399442000,-151.0,0.00028267,2]
[424997974,1781399442000,-1758.07113899,0.0002828,2]
[424997975,1781399442000,-158.51471047,0.000284,2]
[424997973,1781399442000,-155.94,0.00028275,7]
[424997977,1781399442000,-158.51471045,0.000284,2]
[424997915,1781399442000,-250.0,0.0002705,2]
[424997965,1781399442000,-211.43,0.0002813,7]
[424997949,1781399442000,-155.75,0.0002755,30]
[424997968,1781399442000,-2103.08,0.000282,7]
[424997941,1781399442000,-3890.64,0.000274,7]
[424997944,1781399442000,-155.94,0.0002755,30]
[424997917,1781399442000,-3557.0,0.00027135,2]
[424997976,1781399442000,-158.51471045,0.000284,2]
[424997916,1781399442000,-150.0,0.0002705,2]
[424997922,1781399442000,-1758.07113899,0.00027264,2]
[424997932,1781399442000,-151.0,0.00027397,2]
[424997933,1781399442000,-151.0,0.00027397,2]
[424997921,1781399442000,-1228.0,0.00027135,2]
[424997924,1781399442000,-1500.0,0.00027397,2]
[424997927,1781399442000,-151.0,0.00027397,2]
[424997925,1781399442000,-151.0,0.00027397,2]
[424997926,1781399442000,-151.0,0.00027397,2]
[424997931,1781399442000,-151.0,0.00027397,2]
[424997923,1781399442000,-211.0,0.00027382,2]
[424997929,1781399442000,-2409.66,0.00027397,10]
[424997942,1781399442000,-178.0984229,0.0002748,2]
[424997928,1781399442000,-228.45744,0.00027397,2]
[424997939,1781399442000,-500.0,0.00027399,8]
[424997943,1781399442000,-500.0,0.000275,7]
[424997940,1781399442000,-2103.08,0.000274,7]
[424997936,1781399442000,-221.045684,0.00027397,2]
[424997938,1781399442000,-177.74134238,0.00027397,30]
[424997934,1781399442000,-151.0,0.00027397,2]
[424997947,1781399442000,-186.3,0.0002755,30]
[424997946,1781399442000,-211.46,0.0002755,2]
[424997945,1781399442000,-186.29,0.0002755,30]
[424997930,1781399442000,-2008.05,0.00027397,10]
[424997948,1781399442000,-211.43,0.0002755,2]
[424997997,1781399443000,-2000.0,0.00029,2]
[424998006,1781399443000,-157.0,0.00029015,30]
[424998000,1781399443000,-2003.7009867,0.00029,2]
[424998001,1781399443000,-2103.08,0.00029,7]
[424998002,1781399443000,-3890.64,0.00029,7]
[424998004,1781399443000,-155.76,0.00029,7]
[424998003,1781399443000,-155.77,0.00029,7]
[424998005,1781399443000,-155.95,0.00029,2]
[424998012,1781399443000,-155.0,0.00029015,30]
[424998011,1781399443000,-163.0,0.00029015,30]
[424998019,1781399443000,-775.0,0.00029239,5]
[424998018,1781399443000,-212.45294953,0.00029234,7]
[424998007,1781399443000,-155.0,0.00029015,30]
[424998010,1781399443000,-155.0,0.00029015,30]
[424998015,1781399443000,-264.0,0.00029094,2]
[424997999,1781399443000,-165.42,0.00029,2]
[424998017,1781399443000,-178.0984229,0.00029124,2]
[424998008,1781399443000,-164.0,0.00029015,30]
[424997998,1781399443000,-2000.0,0.00029,2]
[424997982,1781399443000,-2772.0,0.00028523,10]
[424997991,1781399443000,-720.0,0.00028767,2]
[424998009,1781399443000,-208.0,0.00029015,30]
[424997981,1781399443000,-2662.6072137,0.00028403,2]
[424997978,1781399443000,-704.61461242,0.000284,2]
[424997979,1781399443000,-704.61461242,0.000284,2]
[424997983,1781399443000,-151.0,0.00028574,2]
[424997980,1781399443000,-704.61461242,0.000284,2]
[424997985,1781399443000,-152.0,0.0002859,5]
[424997995,1781399443000,-10000.0,0.00029,120]
[424997984,1781399443000,-178.0984229,0.00028576,2]
[424997986,1781399443000,-1942.86,0.00028671,120]
[424997987,1781399443000,-257.24,0.00028689,120]
[424997988,1781399443000,-1561.3,0.0002871,2]
[424997992,1781399443000,-1987.52,0.00028937,2]
[424997989,1781399443000,-650.54,0.0002871,2]
[424997994,1781399443000,-216.0,0.00029,120]
[424997990,1781399443000,-900.0,0.00028767,2]
[424997993,1781399443000,-395.6611247,0.00029,2]
[424997996,1781399443000,-2000.0,0.00029,2]
[424998014,1781399443000,-155.0,0.00029015,30]
[424998029,1781399443000,-3519.1524232,0.00029605,2]
[424998013,1781399443000,-157.0,0.00029015,30]
[424998042,1781399443000,-1942.86,0.00029822,120]
[424998038,1781399443000,-3700.0,0.000298,10]
[424998043,1781399443000,-218.7330063,0.00029851,2]
[424998045,1781399443000,-12846.51081558,0.000299,2]
[424998046,1781399443000,-700.0,0.000299,10]
[424998048,1781399443000,-500.0,0.00029999,120]
[424998054,1781399443000,-369.47657154,0.0003,30]
[424998050,1781399443000,-500.0,0.00029999,8]
[424998047,1781399443000,-150.22234143,0.000299,2]
[424998055,1781399443000,-543.10878747,0.0003,3]
[424998052,1781399443000,-500.0,0.00029999,8]
[424998053,1781399443000,-500.0,0.00029999,2]
[424998016,1781399443000,-655.14764185,0.00029109,2]
[424998051,1781399443000,-500.0,0.00029999,8]
[424998057,1781399443000,-50000.0,0.0003,4]
[424998058,1781399443000,-73440.55808586,0.0003,3]
[424998056,1781399443000,-50000.0,0.0003,7]
[424998041,1781399443000,-185.12,0.00029819,2]
[424998039,1781399443000,-424.90589907,0.00029805,7]
[424998049,1781399443000,-500.0,0.00029999,7]
[424998036,1781399443000,-2103.08,0.000298,7]
[424998032,1781399443000,-240.0,0.00029662,7]
[424998023,1781399443000,-6076.0,0.00029359,2]
[424998024,1781399443000,-3644.0,0.00029359,2]
[424998025,1781399443000,-150.0,0.00029446,21]
[424998020,1781399443000,-1942.86,0.00029247,120]
[424998022,1781399443000,-500.0,0.00029356,60]
[424998026,1781399443000,-1283.7588,0.0002945,2]
[424998030,1781399443000,-720.0,0.00029659,7]
[424998031,1781399443000,-900.0,0.0002966,7]
[424998021,1781399443000,-1758.07113899,0.00029295,2]
[424998028,1781399443000,-185.69,0.00029604,120]
[424998034,1781399443000,-178.0984229,0.00029672,2]
[424998037,1781399443000,-3890.64,0.000298,7]
[424998033,1781399443000,-4158.0,0.00029664,10]
[424998035,1781399443000,-3000.0,0.000297,10]
[424998044,1781399443000,-390.32,0.0002987,2]
[424998027,1781399443000,-689.8,0.00029566,2]
[424998040,1781399443000,-503.0,0.0002981,13]
[424998068,1781399446000,-1255.23817257,0.00027397,10]
[424998061,1781399446000,-158.55,0.00024658,2]
[424998062,1781399446000,-158.55,0.00026105,7]
[424998063,1781399446000,-354.14182743,0.00026531,2]
[424998065,1781399446000,-418.14182743,0.00027397,10]
[424998064,1781399446000,-64.85817257,0.00026531,2]
[424998070,1781399446000,-155.76,0.0002755,30]
[424998072,1781399446000,-155.94,0.00028033,7]
[424998075,1781399446000,-155.94,0.00028516,2]
[424998071,1781399446000,-158.55,0.00027552,30]
[424998074,1781399446000,-211.41,0.0002813,7]
[424998076,1781399446000,-53.11155253,0.00029,7]
[424998069,1781399446000,-211.41,0.0002755,2]
[424998079,1781399447000,-102.64844747,0.00029,7]
[424998080,1781399447000,-150.0,0.00029372,2]
[424998083,1781399447000,-151.0,0.00029672,2]
[424998081,1781399447000,-149.44725668,0.00029531,2]
[424998084,1781399447000,-4458.89716483,0.0003,3]
[424998085,1781399447000,-981.19159346,0.0003,3]
[424998087,1781399447000,-1983.83357427,0.0003,3]
[424998082,1781399447000,-269.55274332,0.00029531,2]
[424998097,1781400273000,-151.0,0.00017191,2]
[424998088,1781400273000,-151.0,0.00017191,2]
[424998089,1781400273000,-151.0,0.00017191,2]
[424998090,1781400273000,-152.0,0.00017191,2]
[424998091,1781400273000,-151.0,0.00017191,2]
[424998093,1781400273000,-151.0,0.00017191,2]
[424998094,1781400273000,-152.0,0.00017191,2]
[424998095,1781400273000,-150.0,0.00017191,2]
[424998096,1781400273000,-150.0,0.00017191,2]
[424998099,1781400273000,-151.0,0.00017191,2]
[424998092,1781400273000,-152.0,0.00017191,2]
[424998100,1781400273000,-151.0,0.00017191,2]
[424998098,1781400273000,-153.0,0.00017191,2]
[424998108,1781400273000,-153.0,0.00017191,2]
[424998106,1781400273000,-151.0,0.00017191,2]
[424998107,1781400273000,-150.0,0.00017191,2]
[424998109,1781400273000,-153.0,0.00017191,2]
[424998110,1781400273000,-150.0,0.00017191,2]
[424998104,1781400273000,-152.0,0.00017191,2]
[424998103,1781400273000,-152.0,0.00017191,2]
[424998102,1781400273000,-151.0,0.00017191,2]
[424998101,1781400273000,-150.0,0.00017191,2]
[424998105,1781400273000,-151.0,0.00017191,2]
[424998120,1781400274000,-152.0,0.00017191,2]
[424998111,1781400274000,-151.0,0.00017191,2]
[424998112,1781400274000,-152.0,0.00017191,2]
[424998113,1781400274000,-150.0,0.00017191,2]
[424998114,1781400274000,-152.0,0.00017191,2]
[424998115,1781400274000,-152.0,0.00017191,2]
[424998116,1781400274000,-151.0,0.00017191,2]
[424998118,1781400274000,-150.0,0.00017191,2]
[424998117,1781400274000,-151.0,0.00017191,2]
[424998122,1781400274000,-151.0,0.00017191,2]
[424998119,1781400274000,-150.0,0.00017191,2]
[424998123,1781400274000,-150.0,0.00017191,2]
[424998132,1781400274000,-537.25076943,0.0001891,2]
[424998125,1781400274000,-151.0,0.00017191,2]
[424998126,1781400274000,-150.0,0.00017191,2]
[424998124,1781400274000,-151.0,0.00017191,2]
[424998127,1781400274000,-153.0,0.00017191,2]
[424998128,1781400274000,-2500.0,0.00017596,2]
[424998129,1781400274000,-503.0,0.00018,2]
[424998131,1781400274000,-258.6475506,0.0001891,2]
[424998130,1781400274000,-155.10167997,0.00018741,2]
[424998121,1781400274000,-150.0,0.00017191,2]
[424998133,1781400276000,-151.0,0.00017191,2]
[424998135,1781400276000,-500.0,0.00019601,2]
[424998136,1781400276000,-500.0,0.00019601,2]
[424998134,1781400276000,-1962.74923057,0.0001891,2]
[424998138,1781400276000,-159.0,0.0002,2]
[424998139,1781400276000,151.0,0.00017191,2]
[424998137,1781400276000,-500.0,0.00019601,2]
[424998140,1781400314000,-151.0,0.00017191,2]
[424998141,1781400314000,-151.0,0.00017191,2]
[424998143,1781400314000,-152.0,0.00017998,2]
[424998142,1781400314000,-151.0,0.00017191,2]
[424998144,1781400314000,-600.0,0.0001891,2]
[424998147,1781400314000,-163.67,0.00020293,2]
[424998145,1781400314000,-427.69448099,0.0001891,2]
[424998146,1781400314000,-200.0,0.0001891,2]
[424998148,1781400314000,-257.65,0.00020293,2]
[424998154,1781400314000,-405.0,0.00020427,2]
[424998150,1781400314000,-500.0,0.00020427,2]
[424998149,1781400314000,-300.0,0.00020426,2]
[424998158,1781400314000,-227.0,0.00020427,2]
[424998156,1781400314000,-313.0,0.00020427,2]
[424998157,1781400314000,-309.0,0.00020427,2]
[424998159,1781400314000,-385.23631901,0.00020428,2]
[424998153,1781400314000,-405.0,0.00020427,2]
[424998152,1781400314000,-411.0,0.00020427,2]
[424998151,1781400314000,-250.0,0.00020427,2]
[424998155,1781400314000,-317.0,0.00020427,2]
[424998165,1781400319000,-398.0,0.00020431,2]
[424998160,1781400319000,-153.0,0.00017191,2]
[424998162,1781400319000,-320.0,0.00020429,2]
[424998161,1781400319000,-24.76368099,0.00020428,2]
[424998164,1781400319000,-310.0,0.00020429,2]
[424998163,1781400319000,-318.0,0.00020429,2]
[424998167,1781400319000,-309.0,0.0002044,2]
[424998166,1781400319000,-318.0,0.0002044,2]
[424998170,1781400319000,-318.0,0.00020515,2]
[424998169,1781400319000,-313.0,0.00020515,2]
[424998171,1781400319000,-309.0,0.00020515,2]
[424998173,1781400319000,-403.0,0.00020583,2]
[424998172,1781400319000,-319.0,0.00020515,2]
[424998175,1781400319000,-159.0,0.00021,2]
[424998174,1781400319000,-406.0,0.00020936,2]
[424998168,1781400319000,-406.0,0.0002045,2]
[424998176,1781400337000,150.0,0.00016675,2]
[424998177,1781400343000,-400.0,0.00021254,2]
[424998178,1781400343000,-500.0,0.00021254,2]
[424998179,1781400343000,-500.0,0.00021254,2]
[424998184,1781400344000,-150.0,0.00021918,2]
[424998180,1781400344000,-500.0,0.00021254,2]
[424998183,1781400344000,-500.0,0.00021917,2]
[424998182,1781400344000,-503.0,0.00021875,5]
[424998181,1781400344000,-500.0,0.00021254,2]
[424998186,1781400349000,-262.9445841,0.00022407,2]
[424998187,1781400349000,-181.18661462,0.00022407,2]
[424998185,1781400349000,-160.0,0.00022,2]
[424998188,1781400350000,404.0,0.00021254,2]
[424998189,1781400365000,-150.0,0.00023014,2]
[424998190,1781400365000,-155.83612005,0.00023096,2]
[424998192,1781400365000,-48.26900024,0.00023096,2]
[424998191,1781400365000,-151.0,0.00023096,2]
[424998214,1781400372000,-185.69,0.00024687,120]
[424998213,1781400372000,-166.66,0.00024677,30]
[424998196,1781400372000,-151.0,0.00023096,2]
[424998194,1781400372000,-102.73099976,0.00023096,2]
[424998197,1781400372000,-151.0,0.00023096,2]
[424998198,1781400372000,-151.0,0.00023096,2]
[424998199,1781400372000,-151.0,0.00023096,2]
[424998200,1781400372000,-151.0,0.00023096,2]
[424998201,1781400372000,-151.0,0.00023096,2]
[424998202,1781400372000,-151.0,0.00023096,2]
[424998205,1781400372000,-155.83612005,0.00023644,2]
[424998193,1781400372000,-412.0,0.00023069,2]
[424998206,1781400372000,-166.66,0.0002368,30]
[424998204,1781400372000,-151.0,0.00023096,2]
[424998216,1781400372000,-5000.0,0.00024897,2]
[424998215,1781400372000,-155.83612009,0.0002474,2]
[424998212,1781400372000,-178.05,0.00024658,2]
[424998211,1781400372000,-173.63,0.00024658,2]
[424998195,1781400372000,-151.0,0.00023096,2]
[424998209,1781400372000,-155.83612005,0.00024192,2]
[424998208,1781400372000,-166.66,0.00024178,30]
[424998210,1781400372000,-405.0,0.00024606,2]
[424998207,1781400372000,-150.0,0.00024164,2]
[424998203,1781400372000,-151.0,0.00023096,2]
[424998217,1781400374000,178.58,0.00024658,2]
[424998218,1781400382000,411.0,0.00023073,2]
[424998219,1781400388000,196.3072609,0.00022886,2]
[424998220,1781400434000,218.7330066,0.00022886,2]
[424998221,1781400444000,-200.0,0.00025135,2]
[424998222,1781400444000,-145.76974927,0.00025168,2]
[424998223,1781400444000,-261.23025073,0.00025168,2]
[424998228,1781400445000,-196.3072609,0.00025935,2]
[424998226,1781400445000,-401.0,0.00025197,2]
[424998225,1781400445000,-166.66,0.00025175,30]
[424998224,1781400445000,-402.0,0.00025168,2]
[424998227,1781400445000,-166.66,0.00025674,30]
[424998229,1781400446000,401.0,0.00025157,2]
[424998230,1781400450000,-166.66,0.00026172,30]
[424998237,1781400450000,150.0,0.000245,2]
[424998236,1781400450000,-101.90835299,0.00027067,2]
[424998235,1781400450000,-151.0,0.00027067,2]
[424998234,1781400450000,-151.0,0.00027067,2]
[424998232,1781400450000,-858.22604586,0.0002674,2]
[424998231,1781400450000,-216.029201,0.00026521,2]
[424998233,1781400450000,-141.77395414,0.0002674,2]
[424998238,1781400451000,150.0,0.00025725,2]
[424998239,1781400454000,375.0,0.0001995,2]
[424998240,1781400465000,503.0,0.00024,2]
[424998241,1781400546000,250.0,0.00014,2]
[424998247,1781400589000,-413.0,0.00024817,2]
[424998246,1781400589000,-412.0,0.00024582,2]
[424998245,1781400589000,-403.0,0.00023332,2]
[424998244,1781400589000,-172.12728389,0.00022407,2]
[424998242,1781400589000,-168.0,0.0002,2]
[424998243,1781400589000,-249.7973549,0.00022407,2]
[424998271,1781400632000,-151.0,0.00027067,2]
[424998272,1781400632000,-151.0,0.00027067,2]
[424998273,1781400632000,-151.0,0.00027067,2]
[424998274,1781400632000,-151.0,0.00027067,2]
[424998281,1781400632000,-2207.0,0.00027078,2]
[424998279,1781400632000,-1467.99318127,0.00027078,2]
[424998280,1781400632000,-812.00681873,0.00027078,2]
[424998276,1781400632000,-151.0,0.00027067,2]
[424998275,1781400632000,-151.0,0.00027067,2]
[424998278,1781400632000,-151.0,0.00027067,2]
[424998269,1781400632000,-49.09164701,0.00027067,2]
[424998277,1781400632000,-151.0,0.00027067,2]
[424998283,1781400632000,-165.0,0.00027377,2]
[424998284,1781400632000,-1500.0,0.00027397,2]
[424998295,1781400632000,-155.95,0.00027578,30]
[424998282,1781400632000,-2229.0,0.00027078,2]
[424998264,1781400632000,-412.0,0.00027038,2]
[424998267,1781400632000,-2221.0,0.00027042,2]
[424998263,1781400632000,-406.0,0.00027031,2]
[424998286,1781400632000,-175.63218869,0.00027397,30]
[424998251,1781400632000,-607.7509345,0.00021917,7]
[424998252,1781400632000,-150.0,0.00021918,2]
[424998253,1781400632000,-399.0,0.00025578,2]
[424998254,1781400632000,-2259.0,0.00025821,2]
[424998256,1781400632000,-2219.0,0.00026147,2]
[424998255,1781400632000,-2217.0,0.00025821,2]
[424998265,1781400632000,-402.0,0.00027038,2]
[424998257,1781400632000,-2277.0,0.00026319,2]
[424998258,1781400632000,-2240.0,0.00026319,2]
[424998260,1781400632000,-153.60555237,0.00027,3]
[424998261,1781400632000,-151.85530607,0.00027,3]
[424998268,1781400632000,-400.0,0.00027048,2]
[424998266,1781400632000,-2292.0,0.00027042,2]
[424998262,1781400632000,-405.0,0.00027026,2]
[424998270,1781400632000,-151.0,0.00027067,2]
[424998259,1781400632000,-2270.0,0.00026322,2]
[424998285,1781400632000,-150.0,0.00027397,2]
[424998324,1781400632000,-2632.0,0.00028518,10]
[424998287,1781400632000,-500.0,0.000275,7]
[424998314,1781400632000,-1063.46320777,0.0002842,5]
[424998317,1781400632000,-37.48218361,0.0002842,5]
[424998318,1781400632000,-1016.23438401,0.0002842,5]
[424998315,1781400632000,-1135.40016758,0.0002842,5]
[424998319,1781400632000,-56.91449816,0.0002842,5]
[424998320,1781400632000,-1032.3840126,0.0002842,5]
[424998322,1781400632000,-1037.54111936,0.0002842,5]
[424998313,1781400632000,-824.81898698,0.0002842,5]
[424998330,1781400632000,-446.99802058,0.00028916,2]
[424998321,1781400632000,-1070.72122579,0.0002842,5]
[424998329,1781400632000,-1020.9,0.00028906,10]
[424998327,1781400632000,-1470.09,0.00028906,10]
[424998326,1781400632000,-300.0,0.00028906,5]
[424998328,1781400632000,-1225.08,0.00028906,10]
[424998325,1781400632000,-159.15441912,0.00028866,2]
[424998297,1781400632000,-175.33,0.00027585,30]
[424998323,1781400632000,-1584.43828189,0.0002842,5]
[424998312,1781400632000,-299.10113537,0.0002842,5]
[424998316,1781400632000,-1009.8125545,0.0002842,5]
[424998304,1781400632000,-582.86049476,0.000284,2]
[424998289,1781400632000,-152.512,0.00027552,17]
[424998290,1781400632000,-703.0,0.00027553,10]
[424998293,1781400632000,-222.04,0.00027569,30]
[424998311,1781400632000,-955.3169514,0.0002842,5]
[424998300,1781400632000,-1226.0,0.0002764,2]
[424998298,1781400632000,-382.0,0.0002764,2]
[424998299,1781400632000,-1275.0,0.0002764,2]
[424998301,1781400632000,-1000.0,0.00027925,2]
[424998288,1781400632000,-2191.57,0.00027552,17]
[424998305,1781400632000,-582.86049476,0.000284,2]
[424998303,1781400632000,-582.86049478,0.000284,2]
[424998308,1781400632000,-401.63032908,0.000284,2]
[424998309,1781400632000,-175.68713743,0.000284,2]
[424998310,1781400632000,-45.87812617,0.0002842,5]
[424998307,1781400632000,-401.63032908,0.000284,2]
[424998306,1781400632000,-401.63032908,0.000284,2]
[424998302,1781400632000,-503.0,0.00028,6]
[424998336,1781400638000,-215.81627801,0.00026781,7]
[424998337,1781400638000,-34.22201317,0.00027569,30]
[424998684,1781400641000,-141.28798683,0.00027569,30]
[424998688,1781400641000,-99.38293597,0.00027578,30]
[424998698,1781400641000,-1155.53615466,0.0002764,2]
[424998696,1781400641000,-177.58706403,0.00027578,30]
[424998686,1781400641000,-676.0,0.00027569,10]
[424998903,1781400643000,-834.49,0.0002764,2]
[424998900,1781400643000,-175.51,0.00027569,30]
[424999302,1781400646000,-1705.8527348,0.0002764,2]
[424999298,1781400646000,-112.36806956,0.0002764,2]
[424999296,1781400646000,-1466.32977578,0.0002764,2]
[424999294,1781400646000,-1500.0,0.00027397,2]
[424999292,1781400646000,-413.0,0.00021917,2]
[424999387,1781400646000,-1427.37554839,0.0002764,2]
[424999300,1781400646000,-510.77171681,0.0002764,2]
[424999401,1781400647000,-15238.43831575,0.00028916,2]
[424999399,1781400647000,-16038.0081768,0.00028916,2]
[424999397,1781400647000,-18769.26382672,0.00028916,2]
[424999393,1781400647000,-175.68713742,0.000284,2]
[424999395,1781400647000,-150.0,0.00028855,2]
[424999391,1781400647000,-175.68713742,0.000284,2]
[424999389,1781400647000,-620.0,0.0002764,10]
[424999721,1781401559000,-182.10609315,0.0001719,2]
[424999720,1781401559000,-402.93453181,0.0001719,2]
[424999722,1781401629000,-87.33850293,0.0001719,2]
[424999723,1781401629000,-903.93481103,0.0001719,2]
[424999724,1781401638000,-457.86912418,0.0001719,2]
[424999726,1781401697000,301.28472333,0.00015,2]
[424999746,1781401832000,-153.0,0.00017191,2]
[424999748,1781401832000,-153.0,0.00017191,2]
[424999747,1781401832000,-151.0,0.00017191,2]
[424999749,1781401832000,-150.0,0.00017191,2]
[424999754,1781401832000,-151.0,0.00017191,2]
[424999751,1781401832000,-151.0,0.00017191,2]
[424999758,1781401832000,-151.0,0.00018,2]
[424999752,1781401832000,-150.0,0.00017191,2]
[424999753,1781401832000,-151.0,0.00017191,2]
[424999756,1781401832000,-505.0,0.00018,2]
[424999764,1781401832000,-192.29830186,0.00018162,2]
[424999755,1781401832000,-206.30433073,0.000172,2]
[424999744,1781401832000,-150.0,0.00017191,2]
[424999750,1781401832000,-151.0,0.00017191,2]
[424999742,1781401832000,-151.0,0.00017191,2]
[424999735,1781401832000,-151.0,0.00017191,2]
[424999743,1781401832000,-152.0,0.00017191,2]
[424999728,1781401832000,-1171.37063893,0.0001719,2]
[424999731,1781401832000,-151.0,0.00017191,2]
[424999730,1781401832000,-151.0,0.00017191,2]
[424999729,1781401832000,-600.0,0.00017191,2]
[424999732,1781401832000,-151.0,0.00017191,2]
[424999733,1781401832000,-151.0,0.00017191,2]
[424999745,1781401832000,-151.0,0.00017191,2]
[424999734,1781401832000,-151.0,0.00017191,2]
[424999757,1781401832000,-151.0,0.00018,2]
[424999737,1781401832000,-151.0,0.00017191,2]
[424999738,1781401832000,-150.0,0.00017191,2]
[424999740,1781401832000,-151.0,0.00017191,2]
[424999739,1781401832000,-151.0,0.00017191,2]
[424999741,1781401832000,-150.0,0.00017191,2]
[424999736,1781401832000,-151.0,0.00017191,2]
[424999759,1781401832000,-151.0,0.00018,2]
[424999784,1781401832000,-157.0,0.0002,2]
[424999761,1781401832000,-151.0,0.00018,2]
[424999782,1781401832000,-151.0,0.00019601,2]
[424999783,1781401832000,-165.00974342,0.0002,2]
[424999786,1781401832000,-401.0,0.00020166,2]
[424999785,1781401832000,-159.0,0.0002,2]
[424999781,1781401832000,-152.0,0.00019601,2]
[424999763,1781401832000,-167.53431226,0.0001811,2]
[424999780,1781401832000,-150.0,0.00019601,2]
[424999789,1781401832000,-643.87071947,0.00021816,2]
[424999795,1781401832000,-151.0,0.00023095,2]
[424999791,1781401832000,-257.17389732,0.00022407,2]
[424999788,1781401832000,-174.8162992,0.00021,2]
[424999792,1781401832000,-505.0,0.00022769,6]
[424999793,1781401832000,-151.0,0.00023095,2]
[424999794,1781401832000,-151.0,0.00023095,2]
[424999790,1781401832000,-288.11052074,0.00022407,2]
[424999776,1781401832000,-151.0,0.00019601,2]
[424999787,1781401832000,-162.90230596,0.00021,2]
[424999778,1781401832000,-151.0,0.00019601,2]
[424999762,1781401832000,-286.33489974,0.00018109,2]
[424999779,1781401832000,-151.0,0.00019601,2]
[424999760,1781401832000,-151.0,0.00018,2]
[424999765,1781401832000,-1535.45329865,0.00018163,2]
[424999772,1781401832000,-200.80905334,0.0001891,2]